[Event "Late-Titled-Tuesday-Blitz-October-24-2023"]
[Site "Chess.com"]
[Date "2023.10.24"]
[Round "7"]
[White "DanielNaroditsky"]
[Black "MikaelyanArman"]
[Result "1-0"]
[WhiteElo "3202"]
[BlackElo "2915"]
[TimeControl "180+1"]
[EndTime "15:12:12 PDT"]
[Termination "DanielNaroditsky won by resignation"]

1. e4 {[%clk 0:03:00.9]} 1... e5 {[%clk 0:03:00]} 2. Nf3 {[%clk 0:03:01.1]} 2...
Nc6 {[%clk 0:03:00.7]} 3. Bb5 {[%clk 0:03:01.3]} 3... a6 {[%clk 0:03:00.6]} 4.
Ba4 {[%clk 0:03:01.8]} 4... Nf6 {[%clk 0:03:01.1]} 5. Nc3 {[%clk 0:03:01.1]}
5... b5 {[%clk 0:02:58.2]} 6. Bb3 {[%clk 0:03:01.7]} 6... Bc5 {[%clk 0:02:58.2]}
7. Nd5 {[%clk 0:03:02.4]} 7... d6 {[%clk 0:02:55.8]} 8. c3 {[%clk 0:02:54.7]}
8... Bb7 {[%clk 0:02:45.1]} 9. d4 {[%clk 0:02:52.2]} 9... exd4 {[%clk
0:02:31.2]} 10. cxd4 {[%clk 0:02:50.8]} 10... Bb4+ {[%clk 0:02:25.3]} 11. Nxb4
{[%clk 0:02:49.4]} 11... Nxb4 {[%clk 0:02:26.2]} 12. O-O {[%clk 0:02:42.5]}
12... Bxe4 {[%clk 0:02:13.7]} 13. Ng5 {[%clk 0:02:22]} 13... Bd5 {[%clk
0:01:43.3]} 14. Qe1+ {[%clk 0:02:20.4]} 14... Kd7 {[%clk 0:00:55.4]} 15. Qxb4
{[%clk 0:02:19.7]} 15... h6 {[%clk 0:00:56]} 16. Nxf7 {[%clk 0:02:15.5]} 1-0

[Event "Late-Titled-Tuesday-Blitz-October-24-2023"]
[Site "Chess.com"]
[Date "2023.10.24"]
[Round "7"]
[White "Chempiblinka"]
[Black "Bala-Afiada"]
[Result "1-0"]
[WhiteElo "2321"]
[BlackElo "1848"]
[TimeControl "180+1"]
[EndTime "15:12:37 PDT"]
[Termination "Chempiblinka won by resignation"]

1. Nf3 {[%clk 0:02:54.8]} 1... d5 {[%clk 0:02:59.9]} 2. g3 {[%clk 0:02:53.3]}
2... Nf6 {[%clk 0:02:59.7]} 3. Bg2 {[%clk 0:02:51]} 3... c5 {[%clk 0:03:00.3]}
4. c4 {[%clk 0:02:49.1]} 4... e6 {[%clk 0:02:58]} 5. O-O {[%clk 0:02:49]} 5...
Nc6 {[%clk 0:02:58]} 6. d4 {[%clk 0:02:49.6]} 6... Be7 {[%clk 0:02:51.4]} 7. Nc3
{[%clk 0:02:48.5]} 7... O-O {[%clk 0:02:48.3]} 8. cxd5 {[%clk 0:02:47.9]} 8...
exd5 {[%clk 0:02:42.3]} 9. Bg5 {[%clk 0:02:46.2]} 9... cxd4 {[%clk 0:02:38.4]}
10. Nxd4 {[%clk 0:02:45.4]} 10... h6 {[%clk 0:02:35.6]} 11. Bf4 {[%clk
0:02:34.8]} 11... a6 {[%clk 0:02:24.1]} 12. Rc1 {[%clk 0:02:32.7]} 12... Be6
{[%clk 0:02:20.6]} 13. e4 {[%clk 0:02:23.6]} 13... dxe4 {[%clk 0:02:19.6]} 14.
Nxe6 {[%clk 0:02:20.3]} 14... fxe6 {[%clk 0:02:10]} 15. Qb3 {[%clk 0:02:19.1]}
15... Nd5 {[%clk 0:01:39.1]} 16. Rfd1 {[%clk 0:02:12.2]} 16... Qc8 {[%clk
0:01:30.8]} 17. Nxd5 {[%clk 0:02:10.1]} 17... exd5 {[%clk 0:01:29.4]} 18. Rxd5
{[%clk 0:02:11]} 18... Kh8 {[%clk 0:01:28.7]} 19. Bxe4 {[%clk 0:02:06.6]} 19...
Qe6 {[%clk 0:01:26.8]} 20. Bg2 {[%clk 0:01:49.7]} 20... Qg6 {[%clk 0:01:02.1]}
21. Qxb7 {[%clk 0:01:46.2]} 21... Rab8 {[%clk 0:00:55.6]} 22. Bxb8 {[%clk
0:01:39.5]} 1-0

[Event "Late-Titled-Tuesday-Blitz-October-24-2023"]
[Site "Chess.com"]
[Date "2023.10.24"]
[Round "7"]
[White "RCone"]
[Black "The_Sherman_Variation"]
[Result "0-1"]
[WhiteElo "2413"]
[BlackElo "2573"]
[TimeControl "180+1"]
[EndTime "15:12:53 PDT"]
[Termination "The_Sherman_Variation won on time"]

1. e4 {[%clk 0:03:00.9]} 1... e6 {[%clk 0:03:00.6]} 2. d4 {[%clk 0:02:59.5]}
2... d5 {[%clk 0:03:01.5]} 3. e5 {[%clk 0:03:00.2]} 3... c5 {[%clk 0:03:01.3]}
4. c3 {[%clk 0:03:00.9]} 4... Nc6 {[%clk 0:03:02]} 5. Nf3 {[%clk 0:03:01.1]}
5... Nh6 {[%clk 0:03:02.9]} 6. Bd3 {[%clk 0:02:59.4]} 6... cxd4 {[%clk
0:03:01.3]} 7. cxd4 {[%clk 0:02:59.1]} 7... Nf5 {[%clk 0:03:02]} 8. Be3 {[%clk
0:02:59.3]} 8... Be7 {[%clk 0:03:01.6]} 9. O-O {[%clk 0:02:58.9]} 9... g5 {[%clk
0:03:02.2]} 10. h3 {[%clk 0:02:20.9]} 10... h5 {[%clk 0:03:01.4]} 11. Be2 {[%clk
0:01:01]} 11... g4 {[%clk 0:03:01.5]} 12. Nh2 {[%clk 0:01:00.9]} 12... gxh3
{[%clk 0:03:01.4]} 13. gxh3 {[%clk 0:01:00.8]} 13... Bg5 {[%clk 0:03:01.4]} 14.
Qd2 {[%clk 0:00:50.8]} 14... Bxe3 {[%clk 0:02:55.3]} 15. fxe3 {[%clk 0:00:51.7]}
15... Qd7 {[%clk 0:02:55.9]} 16. Nc3 {[%clk 0:00:47.5]} 16... Qe7 {[%clk
0:02:56.4]} 17. Kh1 {[%clk 0:00:42.5]} 17... Ng3+ {[%clk 0:02:55.9]} 18. Kg2
{[%clk 0:00:41.4]} 18... Nxf1 {[%clk 0:02:56.8]} 19. Bxf1 {[%clk 0:00:31.9]}
19... Bd7 {[%clk 0:02:57]} 20. Kh1 {[%clk 0:00:30.8]} 20... O-O-O {[%clk
0:02:57.6]} 21. Rc1 {[%clk 0:00:29.9]} 21... Kb8 {[%clk 0:02:58.2]} 22. Na4
{[%clk 0:00:30.3]} 22... f6 {[%clk 0:02:58.7]} 23. exf6 {[%clk 0:00:29.8]} 23...
Qxf6 {[%clk 0:02:59.6]} 24. Nc5 {[%clk 0:00:29.6]} 24... Bc8 {[%clk 0:03:00.1]}
25. Bg2 {[%clk 0:00:27.1]} 25... Rhg8 {[%clk 0:02:59.9]} 26. Nf3 {[%clk
0:00:26.3]} 26... Rdf8 {[%clk 0:02:59.2]} 27. Qe2 {[%clk 0:00:24.9]} 27... e5
{[%clk 0:02:57.4]} 28. dxe5 {[%clk 0:00:19.4]} 28... Nxe5 {[%clk 0:02:58.3]} 29.
Nxe5 {[%clk 0:00:19.6]} 29... Qxe5 {[%clk 0:02:58.9]} 30. Nd3 {[%clk 0:00:15.5]}
30... Qg3 {[%clk 0:02:58]} 31. Nf4 {[%clk 0:00:15.2]} 31... Rxf4 {[%clk
0:02:57.5]} 32. exf4 {[%clk 0:00:15.4]} 32... Bxh3 {[%clk 0:02:57.9]} 33. Rg1
{[%clk 0:00:10.9]} 33... Bxg2+ {[%clk 0:02:56.3]} 34. Rxg2 {[%clk 0:00:11.8]}
34... Qxg2+ {[%clk 0:02:57.2]} 35. Qxg2 {[%clk 0:00:11.7]} 35... Rxg2 {[%clk
0:02:58.1]} 36. Kxg2 {[%clk 0:00:12.5]} 36... Kc7 {[%clk 0:02:59]} 37. Kg3
{[%clk 0:00:12.8]} 37... Kd6 {[%clk 0:02:59.9]} 38. Kh4 {[%clk 0:00:13.3]} 38...
d4 {[%clk 0:03:00.5]} 39. Kxh5 {[%clk 0:00:14.2]} 39... d3 {[%clk 0:03:01]} 40.
f5 {[%clk 0:00:14.7]} 40... d2 {[%clk 0:03:01.9]} 41. f6 {[%clk 0:00:14.3]}
41... d1=Q+ {[%clk 0:03:02.8]} 42. Kg6 {[%clk 0:00:14.5]} 42... Qg4+ {[%clk
0:03:03.3]} 43. Kh7 {[%clk 0:00:14.1]} 43... Ke6 {[%clk 0:03:03.5]} 44. f7
{[%clk 0:00:13.6]} 44... Kxf7 {[%clk 0:03:04.1]} 0-1

[Event "Late-Titled-Tuesday-Blitz-October-24-2023"]
[Site "Chess.com"]
[Date "2023.10.24"]
[Round "7"]
[White "lluiss"]
[Black "Nikita_Klepikov"]
[Result "0-1"]
[WhiteElo "2215"]
[BlackElo "2357"]
[TimeControl "180+1"]
[EndTime "15:13:02 PDT"]
[Termination "Nikita_Klepikov won by resignation"]

1. Nf3 {[%clk 0:03:00.9]} 1... Nf6 {[%clk 0:02:56.2]} 2. d4 {[%clk 0:03:00.6]}
2... d6 {[%clk 0:02:54.5]} 3. g3 {[%clk 0:02:59.3]} 3... g6 {[%clk 0:02:54.5]}
4. Bg2 {[%clk 0:02:59.8]} 4... Bg7 {[%clk 0:02:55.3]} 5. O-O {[%clk 0:03:00.2]}
5... O-O {[%clk 0:02:56]} 6. c4 {[%clk 0:03:00.6]} 6... Nbd7 {[%clk 0:02:56.5]}
7. Nc3 {[%clk 0:03:00.7]} 7... e5 {[%clk 0:02:57.1]} 8. h3 {[%clk 0:02:57.9]}
8... Re8 {[%clk 0:02:54]} 9. Re1 {[%clk 0:02:56.6]} 9... exd4 {[%clk 0:02:37]}
10. Nxd4 {[%clk 0:02:55.7]} 10... Nc5 {[%clk 0:02:37.6]} 11. e4 {[%clk
0:02:53.3]} 11... h6 {[%clk 0:02:37.1]} 12. b3 {[%clk 0:02:52]} 12... Ne6 {[%clk
0:02:28.7]} 13. Nde2 {[%clk 0:02:49.7]} 13... Ng5 {[%clk 0:02:27.7]} 14. Nf4
{[%clk 0:02:45.1]} 14... Nfxe4 {[%clk 0:02:19.2]} 15. Nxe4 {[%clk 0:02:24.5]}
15... Bxa1 {[%clk 0:02:06.8]} 16. Nxg5 {[%clk 0:02:17.3]} 16... Rxe1+ {[%clk
0:01:57.3]} 17. Qxe1 {[%clk 0:02:16.4]} 17... hxg5 {[%clk 0:01:58]} 18. Nd5
{[%clk 0:02:16.4]} 18... c6 {[%clk 0:01:51.7]} 19. Bd2 {[%clk 0:01:53.1]} 19...
Bg7 {[%clk 0:01:37]} 20. Nc3 {[%clk 0:01:53]} 20... Bf5 {[%clk 0:01:33.5]} 21.
Qc1 {[%clk 0:01:49.2]} 21... Bf6 {[%clk 0:01:32.8]} 22. Ne4 {[%clk 0:01:47.2]}
22... Bxe4 {[%clk 0:01:33.3]} 23. Bxe4 {[%clk 0:01:47.4]} 23... Qe7 {[%clk
0:01:31.1]} 24. Bf3 {[%clk 0:01:39.7]} 24... Re8 {[%clk 0:01:30.3]} 25. Kg2
{[%clk 0:01:40]} 25... Qe5 {[%clk 0:01:24.5]} 26. Be3 {[%clk 0:01:35.6]} 26...
a6 {[%clk 0:01:20.2]} 27. Qa3 {[%clk 0:01:31.5]} 27... Qb2 {[%clk 0:01:06.2]}
28. Qa5 {[%clk 0:01:21.5]} 28... Rxe3 {[%clk 0:01:02.6]} 0-1

[Event "Late-Titled-Tuesday-Blitz-October-24-2023"]
[Site "Chess.com"]
[Date "2023.10.24"]
[Round "7"]
[White "Drags95"]
[Black "Cryptochess"]
[Result "0-1"]
[WhiteElo "2831"]
[BlackElo "2633"]
[TimeControl "180+1"]
[EndTime "15:13:04 PDT"]
[Termination "Cryptochess won by resignation"]

1. d4 {[%clk 0:03:00.9]} 1... Nf6 {[%clk 0:02:56.8]} 2. c4 {[%clk 0:03:01.3]}
2... e6 {[%clk 0:02:57.1]} 3. Nf3 {[%clk 0:03:01.1]} 3... d5 {[%clk 0:02:57.8]}
4. Nc3 {[%clk 0:03:01]} 4... Be7 {[%clk 0:02:57.8]} 5. Bf4 {[%clk 0:03:00.6]}
5... O-O {[%clk 0:02:58.1]} 6. e3 {[%clk 0:03:00.9]} 6... Nbd7 {[%clk
0:02:58.7]} 7. c5 {[%clk 0:03:00.8]} 7... c6 {[%clk 0:02:57.3]} 8. b4 {[%clk
0:03:01.3]} 8... b6 {[%clk 0:02:56.3]} 9. h4 {[%clk 0:03:01.2]} 9... a5 {[%clk
0:02:56.4]} 10. b5 {[%clk 0:02:56.6]} 10... Bb7 {[%clk 0:02:30.9]} 11. cxb6
{[%clk 0:02:34.7]} 11... Nxb6 {[%clk 0:02:24.8]} 12. Bd3 {[%clk 0:02:30.5]}
12... Bb4 {[%clk 0:02:19.4]} 13. Qb3 {[%clk 0:02:24.9]} 13... Na4 {[%clk
0:02:14.7]} 14. Qxa4 {[%clk 0:02:13.8]} 14... Bxc3+ {[%clk 0:02:13.6]} 15. Ke2
{[%clk 0:02:14.4]} 15... Bxa1 {[%clk 0:02:13.9]} 16. bxc6 {[%clk 0:02:14.1]}
16... Qe8 {[%clk 0:01:53.8]} 17. Ne5 {[%clk 0:02:12.4]} 17... Bc3 {[%clk
0:01:51.1]} 18. g4 {[%clk 0:01:32.4]} 18... Bb4 {[%clk 0:01:27.3]} 19. g5 {[%clk
0:01:32.7]} 19... Ne4 {[%clk 0:01:25.4]} 20. Qc2 {[%clk 0:01:33.4]} 20... Ba6
{[%clk 0:01:22.8]} 21. f3 {[%clk 0:01:30]} 21... Nc3+ {[%clk 0:01:03.2]} 22. Kf2
{[%clk 0:01:30.3]} 22... Bxd3 {[%clk 0:01:03.4]} 23. Qxd3 {[%clk 0:01:31.2]}
23... f6 {[%clk 0:00:59.5]} 24. gxf6 {[%clk 0:01:31.3]} 24... gxf6 {[%clk
0:00:56.4]} 25. Rg1+ {[%clk 0:01:28.6]} 25... Kh8 {[%clk 0:00:56.2]} 26. Ng6+
{[%clk 0:01:23.9]} 26... hxg6 {[%clk 0:00:51.3]} 27. Rxg6 {[%clk 0:01:24.8]}
27... Ne4+ {[%clk 0:00:51.6]} 0-1

[Event "Late-Titled-Tuesday-Blitz-October-24-2023"]
[Site "Chess.com"]
[Date "2023.10.24"]
[Round "7"]
[White "rockstar0902"]
[Black "mishanick"]
[Result "0-1"]
[WhiteElo "2682"]
[BlackElo "3050"]
[TimeControl "180+1"]
[EndTime "15:13:15 PDT"]
[Termination "mishanick won by resignation"]

1. c4 {[%clk 0:03:00.9]} 1... e5 {[%clk 0:02:59.4]} 2. Nc3 {[%clk 0:03:00.5]}
2... Nf6 {[%clk 0:02:59.4]} 3. Nf3 {[%clk 0:03:00.5]} 3... Nc6 {[%clk
0:02:59.6]} 4. e4 {[%clk 0:02:59.9]} 4... Bb4 {[%clk 0:02:58.1]} 5. d3 {[%clk
0:02:59.1]} 5... d6 {[%clk 0:02:57.8]} 6. a3 {[%clk 0:02:59]} 6... Ba5 {[%clk
0:02:57.7]} 7. b4 {[%clk 0:02:57.2]} 7... Bb6 {[%clk 0:02:58.1]} 8. Be3 {[%clk
0:02:57.3]} 8... Nd4 {[%clk 0:02:54.6]} 9. Be2 {[%clk 0:02:50.2]} 9... Nxf3+
{[%clk 0:02:40.9]} 10. Bxf3 {[%clk 0:02:51.1]} 10... Bxe3 {[%clk 0:02:41]} 11.
fxe3 {[%clk 0:02:52]} 11... O-O {[%clk 0:02:41]} 12. O-O {[%clk 0:02:51.9]}
12... Be6 {[%clk 0:02:41.5]} 13. Qd2 {[%clk 0:02:50.5]} 13... c6 {[%clk
0:02:41.9]} 14. a4 {[%clk 0:02:49.7]} 14... Qe7 {[%clk 0:02:39.4]} 15. a5 {[%clk
0:02:49.5]} 15... a6 {[%clk 0:02:39]} 16. Bd1 {[%clk 0:02:41.3]} 16... g6 {[%clk
0:02:37.8]} 17. Bb3 {[%clk 0:02:36.9]} 17... Kg7 {[%clk 0:02:37.4]} 18. d4
{[%clk 0:02:33.6]} 18... Rad8 {[%clk 0:02:37.4]} 19. Qf2 {[%clk 0:02:26.7]}
19... Ng4 {[%clk 0:02:33.9]} 20. Qg3 {[%clk 0:02:21]} 20... h5 {[%clk
0:02:16.3]} 21. h3 {[%clk 0:02:19.5]} 21... h4 {[%clk 0:02:15.8]} 22. Qf3 {[%clk
0:02:19.7]} 22... Nf6 {[%clk 0:02:15.5]} 23. d5 {[%clk 0:01:45.1]} 23... Bc8
{[%clk 0:02:13.9]} 24. c5 {[%clk 0:01:42.3]} 24... Nh5 {[%clk 0:02:09.9]} 25.
Na4 {[%clk 0:01:35.9]} 25... Ng3 {[%clk 0:02:07]} 26. Rf2 {[%clk 0:01:35.1]}
26... f5 {[%clk 0:02:06.8]} 27. exf5 {[%clk 0:01:32.5]} 27... Rxf5 {[%clk
0:02:05.4]} 28. Qd1 {[%clk 0:01:32.1]} 28... Rxf2 {[%clk 0:02:02]} 29. Kxf2
{[%clk 0:01:33]} 29... Qg5 {[%clk 0:01:47.1]} 30. Qd3 {[%clk 0:01:16.3]} 30...
Bf5 {[%clk 0:01:43.3]} 31. Qc4 {[%clk 0:01:02.6]} 31... Ne4+ {[%clk 0:01:42.6]}
32. Kg1 {[%clk 0:01:00.3]} 32... Qxe3+ {[%clk 0:01:42.8]} 33. Kh1 {[%clk
0:00:59.5]} 33... Nf2+ {[%clk 0:01:41.3]} 34. Kh2 {[%clk 0:00:59.5]} 34... Qg3+
{[%clk 0:01:40.1]} 35. Kg1 {[%clk 0:01:00]} 35... Nxh3+ {[%clk 0:01:40.6]} 36.
Kh1 {[%clk 0:01:00.6]} 36... Nf2+ {[%clk 0:01:39]} 37. Kg1 {[%clk 0:01:00.6]}
37... h3 {[%clk 0:01:39.6]} 0-1

[Event "Late-Titled-Tuesday-Blitz-October-24-2023"]
[Site "Chess.com"]
[Date "2023.10.24"]
[Round "7"]
[White "biostatistician"]
[Black "szachmistrz2500"]
[Result "1-0"]
[WhiteElo "2593"]
[BlackElo "2421"]
[TimeControl "180+1"]
[EndTime "15:13:18 PDT"]
[Termination "biostatistician won by resignation"]

1. d4 {[%clk 0:02:58.8]} 1... Nf6 {[%clk 0:02:58.9]} 2. Nf3 {[%clk 0:02:59.7]}
2... d5 {[%clk 0:02:51.1]} 3. c4 {[%clk 0:03:00]} 3... e6 {[%clk 0:02:51.3]} 4.
Nc3 {[%clk 0:03:00.4]} 4... Bb4 {[%clk 0:02:51.2]} 5. e3 {[%clk 0:02:59.5]} 5...
O-O {[%clk 0:02:49.5]} 6. Bd3 {[%clk 0:02:59.1]} 6... Nbd7 {[%clk 0:02:44.3]} 7.
O-O {[%clk 0:02:57.9]} 7... b6 {[%clk 0:02:44]} 8. cxd5 {[%clk 0:02:57.1]} 8...
exd5 {[%clk 0:02:43.6]} 9. Qa4 {[%clk 0:02:55.2]} 9... Be7 {[%clk 0:02:38.5]}
10. Qc6 {[%clk 0:02:52.4]} 10... Rb8 {[%clk 0:02:38.3]} 11. Nxd5 {[%clk
0:02:52.6]} 11... Bb7 {[%clk 0:02:30.4]} 12. Nxe7+ {[%clk 0:02:46.8]} 12... Qxe7
{[%clk 0:02:30.2]} 13. Qxc7 {[%clk 0:02:47.7]} 13... Rfe8 {[%clk 0:02:23.8]} 14.
Qg3 {[%clk 0:02:46.6]} 14... Ne4 {[%clk 0:02:19.1]} 15. Qh3 {[%clk 0:02:38.2]}
15... Rbc8 {[%clk 0:02:12.7]} 16. Bd2 {[%clk 0:02:36.6]} 16... Nxd2 {[%clk
0:02:09.8]} 17. Nxd2 {[%clk 0:02:36.2]} 17... Nf6 {[%clk 0:02:09.9]} 18. Rac1
{[%clk 0:02:32]} 18... Qb4 {[%clk 0:02:09.8]} 19. Nb3 {[%clk 0:02:28.1]} 19...
a5 {[%clk 0:02:09.9]} 20. Rxc8 {[%clk 0:01:50.8]} 20... Rxc8 {[%clk 0:02:08.1]}
21. Bf5 {[%clk 0:01:50.5]} 21... Rc4 {[%clk 0:01:48.3]} 22. Qg3 {[%clk
0:01:42.8]} 22... Qf8 {[%clk 0:01:26.1]} 23. Nd2 {[%clk 0:01:39.4]} 23... Rb4
{[%clk 0:01:21.2]} 24. b3 {[%clk 0:01:38.7]} 24... g6 {[%clk 0:01:20.1]} 25. Bd3
{[%clk 0:01:35.2]} 25... a4 {[%clk 0:01:18.9]} 26. Qc7 {[%clk 0:01:32.5]} 26...
axb3 {[%clk 0:01:06.9]} 27. axb3 {[%clk 0:01:29]} 27... Bd5 {[%clk 0:01:06]} 28.
Qc3 {[%clk 0:01:21.2]} 28... h5 {[%clk 0:00:56.6]} 29. e4 {[%clk 0:01:20.3]}
29... Be6 {[%clk 0:00:56.8]} 30. d5 {[%clk 0:01:19.3]} 30... Bd7 {[%clk
0:00:57.1]} 31. Qxf6 {[%clk 0:01:18.3]} 1-0

[Event "Late-Titled-Tuesday-Blitz-October-24-2023"]
[Site "Chess.com"]
[Date "2023.10.24"]
[Round "7"]
[White "scandalgod"]
[Black "YellowJacek"]
[Result "0-1"]
[WhiteElo "2502"]
[BlackElo "2328"]
[TimeControl "180+1"]
[EndTime "15:13:34 PDT"]
[Termination "YellowJacek won by resignation"]

1. d4 {[%clk 0:03:00.9]} 1... Nf6 {[%clk 0:02:57.9]} 2. c4 {[%clk 0:03:00.8]}
2... g6 {[%clk 0:02:58.3]} 3. Nc3 {[%clk 0:03:00.3]} 3... d5 {[%clk 0:02:58.3]}
4. cxd5 {[%clk 0:02:59]} 4... Nxd5 {[%clk 0:02:59.2]} 5. e4 {[%clk 0:02:59.3]}
5... Nxc3 {[%clk 0:02:58.8]} 6. bxc3 {[%clk 0:03:00]} 6... Bg7 {[%clk
0:02:59.4]} 7. Be3 {[%clk 0:03:00.5]} 7... O-O {[%clk 0:02:59.5]} 8. Qd2 {[%clk
0:03:01]} 8... c5 {[%clk 0:02:59.7]} 9. Nf3 {[%clk 0:03:01.5]} 9... Nc6 {[%clk
0:02:59.9]} 10. d5 {[%clk 0:03:00.6]} 10... Ne5 {[%clk 0:02:58.4]} 11. Nxe5
{[%clk 0:03:00.8]} 11... Bxe5 {[%clk 0:02:59.3]} 12. Be2 {[%clk 0:03:00.3]}
12... Qa5 {[%clk 0:02:55.1]} 13. Rc1 {[%clk 0:02:59.7]} 13... b6 {[%clk
0:02:45.2]} 14. h4 {[%clk 0:02:56.8]} 14... Bg7 {[%clk 0:02:33.9]} 15. h5 {[%clk
0:02:54.2]} 15... Ba6 {[%clk 0:02:31.7]} 16. hxg6 {[%clk 0:02:51.6]} 16... fxg6
{[%clk 0:02:28]} 17. c4 {[%clk 0:02:47.3]} 17... Qxd2+ {[%clk 0:02:26.4]} 18.
Kxd2 {[%clk 0:02:47.6]} 18... Rad8 {[%clk 0:02:20.3]} 19. Bg4 {[%clk 0:02:40.4]}
19... Bc8 {[%clk 0:02:18.7]} 20. Bf3 {[%clk 0:02:38.2]} 20... Be5 {[%clk
0:02:11.6]} 21. Kc2 {[%clk 0:02:32.1]} 21... Bf4 {[%clk 0:02:07.8]} 22. Rhe1
{[%clk 0:02:29.1]} 22... Kg7 {[%clk 0:02:05.5]} 23. Rcd1 {[%clk 0:02:26]} 23...
Bxe3 {[%clk 0:02:05]} 24. Rxe3 {[%clk 0:02:25.8]} 24... e5 {[%clk 0:02:03.2]}
25. Kc3 {[%clk 0:02:21.6]} 25... Rd6 {[%clk 0:01:57]} 26. Ree1 {[%clk
0:02:18.6]} 26... g5 {[%clk 0:01:57.3]} 27. Rd2 {[%clk 0:02:10.6]} 27... g4
{[%clk 0:01:56.1]} 28. Bd1 {[%clk 0:02:10.1]} 28... h5 {[%clk 0:01:54.4]} 29. a4
{[%clk 0:02:09.6]} 29... a5 {[%clk 0:01:51.3]} 30. f3 {[%clk 0:02:05.1]} 30...
Kg6 {[%clk 0:01:48]} 31. Rh1 {[%clk 0:01:57.9]} 31... Kg5 {[%clk 0:01:42]} 32.
Rf2 {[%clk 0:01:42.8]} 32... g3 {[%clk 0:01:37.5]} 33. Rb2 {[%clk 0:01:39.4]}
33... h4 {[%clk 0:01:37.7]} 34. Be2 {[%clk 0:01:34.7]} 34... Rff6 {[%clk
0:01:35.5]} 35. Rhb1 {[%clk 0:01:29.7]} 35... Rh6 {[%clk 0:01:33.7]} 36. Kd3
{[%clk 0:01:26.8]} 36... Bd7 {[%clk 0:01:33.3]} 37. Bd1 {[%clk 0:01:24.7]} 37...
Kf4 {[%clk 0:01:33.5]} 38. Ra1 {[%clk 0:01:18.9]} 38... Rdg6 {[%clk 0:01:30.7]}
39. Raa2 {[%clk 0:01:05.1]} 39... h3 {[%clk 0:01:28.7]} 40. gxh3 {[%clk
0:01:05.2]} 40... Bxh3 {[%clk 0:01:24.9]} 41. Rg2 {[%clk 0:00:58.6]} 41... Bxg2
{[%clk 0:01:24.5]} 42. Rxg2 {[%clk 0:00:57.7]} 42... Rh2 {[%clk 0:01:25]} 43.
Rg1 {[%clk 0:00:58]} 43... g2 {[%clk 0:01:24.6]} 0-1

[Event "Late-Titled-Tuesday-Blitz-October-24-2023"]
[Site "Chess.com"]
[Date "2023.10.24"]
[Round "7"]
[White "SpeedofLight0"]
[Black "nochewycandy"]
[Result "1-0"]
[WhiteElo "2975"]
[BlackElo "2776"]
[TimeControl "180+1"]
[EndTime "15:13:41 PDT"]
[Termination "SpeedofLight0 won on time"]

1. d4 {[%clk 0:02:56]} 1... d5 {[%clk 0:02:57.8]} 2. Bf4 {[%clk 0:02:56.6]} 2...
c5 {[%clk 0:02:56.2]} 3. e3 {[%clk 0:02:57.2]} 3... Nc6 {[%clk 0:02:44]} 4. Nf3
{[%clk 0:02:57.3]} 4... Bg4 {[%clk 0:02:42.4]} 5. Nbd2 {[%clk 0:02:56.3]} 5...
cxd4 {[%clk 0:02:21.7]} 6. exd4 {[%clk 0:02:57.2]} 6... e6 {[%clk 0:02:22.3]} 7.
c3 {[%clk 0:02:56.7]} 7... Bd6 {[%clk 0:02:07.3]} 8. Bxd6 {[%clk 0:02:55.5]}
8... Qxd6 {[%clk 0:02:08.2]} 9. Qb3 {[%clk 0:02:55.7]} 9... Nge7 {[%clk
0:02:07.3]} 10. Bd3 {[%clk 0:02:54]} 10... O-O {[%clk 0:02:06.2]} 11. O-O {[%clk
0:02:54.7]} 11... Bh5 {[%clk 0:01:47.9]} 12. Rfe1 {[%clk 0:02:53.8]} 12... Bg6
{[%clk 0:01:46.7]} 13. Bf1 {[%clk 0:02:53.7]} 13... Rab8 {[%clk 0:01:13.9]} 14.
a4 {[%clk 0:02:53.7]} 14... a6 {[%clk 0:01:11.6]} 15. a5 {[%clk 0:02:53.6]}
15... f6 {[%clk 0:00:48.6]} 16. c4 {[%clk 0:02:53]} 16... Kh8 {[%clk 0:00:46.3]}
17. Qc3 {[%clk 0:02:50.8]} 17... Bf7 {[%clk 0:00:40.3]} 18. Nb3 {[%clk 0:02:50]}
18... Rfc8 {[%clk 0:00:29.1]} 19. Nc5 {[%clk 0:02:49.8]} 19... Nxd4 {[%clk
0:00:23.4]} 20. Nxd4 {[%clk 0:02:48.2]} 20... Rxc5 {[%clk 0:00:18.4]} 21. b4
{[%clk 0:02:48.6]} 21... Rcc8 {[%clk 0:00:19.1]} 22. c5 {[%clk 0:02:48.4]} 22...
Qd7 {[%clk 0:00:19.8]} 23. Qh3 {[%clk 0:02:48.4]} 23... f5 {[%clk 0:00:16]} 24.
Qg3 {[%clk 0:02:47.2]} 24... Ng6 {[%clk 0:00:15.9]} 25. h4 {[%clk 0:02:47.2]}
25... e5 {[%clk 0:00:15.2]} 26. Nf3 {[%clk 0:02:46.3]} 26... f4 {[%clk
0:00:15.4]} 27. Qh2 {[%clk 0:02:42.1]} 27... e4 {[%clk 0:00:13.7]} 28. Nd4
{[%clk 0:02:39.3]} 28... Qg4 {[%clk 0:00:10.8]} 29. h5 {[%clk 0:02:30.4]} 29...
Ne5 {[%clk 0:00:10.4]} 30. h6 {[%clk 0:02:29.3]} 30... gxh6 {[%clk 0:00:09.7]}
31. Qxh6 {[%clk 0:02:28.5]} 31... Rg8 {[%clk 0:00:04.1]} 32. Qf6+ {[%clk
0:02:28.1]} 32... Qg7 {[%clk 0:00:04.9]} 33. Qxf4 {[%clk 0:02:28.6]} 33... Rbf8
{[%clk 0:00:05.2]} 34. Ra3 {[%clk 0:02:27.6]} 34... Ng6 {[%clk 0:00:03.1]} 35.
Qd2 {[%clk 0:02:26.7]} 35... Qe5 {[%clk 0:00:03.2]} 36. Rh3 {[%clk 0:02:26.1]}
36... Nf4 {[%clk 0:00:03.6]} 37. Rh2 {[%clk 0:02:23.7]} 37... Rg7 {[%clk
0:00:03.8]} 38. g3 {[%clk 0:02:23.1]} 38... Ng6 {[%clk 0:00:03.8]} 39. Nf3
{[%clk 0:02:21.1]} 39... Qf6 {[%clk 0:00:03.8]} 40. Ng5 {[%clk 0:02:21.3]} 40...
Bg8 {[%clk 0:00:04.4]} 41. Rh5 {[%clk 0:02:16.3]} 41... Ne5 {[%clk 0:00:04.7]}
42. Bg2 {[%clk 0:02:16.4]} 42... Ng4 {[%clk 0:00:03.2]} 43. Rf1 {[%clk
0:02:15.3]} 43... h6 {[%clk 0:00:02.8]} 44. Nh3 {[%clk 0:02:14.4]} 44... Ne5
{[%clk 0:00:02.8]} 45. Nf4 {[%clk 0:02:13.6]} 45... Bf7 {[%clk 0:00:01.9]} 46.
Nxd5 {[%clk 0:02:13.3]} 1-0